[Event "Live Chess"]
[Site "Chess.com"]
[Date "2023.05.21"]
[Round "-"]
[White "Ian-Morley"]
[Black "TheSmoulderingMaster"]
[Result "0-1"]
[WhiteElo "1053"]
[BlackElo "1685"]
[TimeControl "300"]
[EndTime "1:27:01 PDT"]
[Termination "TheSmoulderingMaster won by checkmate"]

1. e4 {[%clk 0:04:58.2]} 1... c5 {[%clk 0:04:59]} 2. Nf3 {[%clk 0:04:56.9]} 2...
d6 {[%clk 0:04:58.1]} 3. Bb5+ {[%clk 0:04:55.8]} 3... Nd7 {[%clk 0:04:57]} 4.
Bxd7+ {[%clk 0:04:55.2]} 4... Bxd7 {[%clk 0:04:56.2]} 5. O-O {[%clk 0:04:54.9]}
5... Bc6 {[%clk 0:04:55.1]} 6. Re1 {[%clk 0:04:54.5]} 6... e5 {[%clk 0:04:53.8]}
7. c3 {[%clk 0:04:53.9]} 7... Nf6 {[%clk 0:04:51.7]} 8. d4 {[%clk 0:04:53.5]}
8... cxd4 {[%clk 0:04:50.7]} 9. cxd4 {[%clk 0:04:52.8]} 9... Bxe4 {[%clk
0:04:46.1]} 10. dxe5 {[%clk 0:04:49.2]} 10... dxe5 {[%clk 0:04:45.2]} 11. Qxd8+
{[%clk 0:04:48.1]} 11... Rxd8 {[%clk 0:04:43.8]} 12. Nxe5 {[%clk 0:04:46.5]}
12... Be7 {[%clk 0:04:40.7]} 13. Bg5 {[%clk 0:04:44.9]} 13... O-O {[%clk
0:04:39.2]} 14. Bxf6 {[%clk 0:04:44.1]} 14... Bxf6 {[%clk 0:04:37]} 15. Nc3
{[%clk 0:04:34]} 15... Bxe5 {[%clk 0:04:35.2]} 16. Nxe4 {[%clk 0:04:28.8]} 16...
Bxb2 {[%clk 0:04:33.4]} 17. Rab1 {[%clk 0:04:27.7]} 17... Bd4 {[%clk 0:04:29.8]}
18. Rxb7 {[%clk 0:04:24.5]} 18... Rfe8 {[%clk 0:04:28.2]} 19. Rbb1 {[%clk
0:04:20.9]} 19... h6 {[%clk 0:04:26.8]} 20. Nd2 {[%clk 0:04:13.1]} 20... Rxe1+
{[%clk 0:04:21.3]} 21. Rxe1 {[%clk 0:04:11.6]} 21... Bc3 {[%clk 0:04:20.6]} 22.
f3 {[%clk 0:03:53]} 22... Rxd2 {[%clk 0:04:17.1]} 23. Re8+ {[%clk 0:03:50.5]}
23... Kh7 {[%clk 0:04:15.8]} 24. Ra8 {[%clk 0:03:49.2]} 24... Rxa2 {[%clk
0:04:13.3]} 25. Kf1 {[%clk 0:03:40.2]} 25... a5 {[%clk 0:04:11.4]} 26. g4 {[%clk
0:03:13.4]} 26... a4 {[%clk 0:04:10.5]} 27. Kg1 {[%clk 0:01:12.8]} 27... a3
{[%clk 0:04:09]} 28. h4 {[%clk 0:00:52.2]} 28... Bb4 {[%clk 0:04:07.2]} 29. f4
{[%clk 0:00:51.1]} 29... Rc2 {[%clk 0:04:04.7]} 30. g5 {[%clk 0:00:44.4]} 30...
hxg5 {[%clk 0:04:02.5]} 31. fxg5 {[%clk 0:00:42]} 31... a2 {[%clk 0:04:01.8]}
32. g6+ {[%clk 0:00:41]} 32... fxg6 {[%clk 0:04:00.1]} 33. h5 {[%clk 0:00:37.5]}
33... gxh5 {[%clk 0:03:59.1]} 34. Ra4 {[%clk 0:00:31.1]} 34... Bc3 {[%clk
0:03:55.7]} 35. Rh4 {[%clk 0:00:28.4]} 35... Kh6 {[%clk 0:03:53.5]} 36. Rxh5+
{[%clk 0:00:26.3]} 36... Kxh5 {[%clk 0:03:51.9]} 37. Kh1 {[%clk 0:00:24.5]}
37... a1=R# {[%clk 0:03:50.2]} 0-1

[Event "Live Chess"]
[Site "Chess.com"]
[Date "2023.05.21"]
[Round "-"]
[White "NAZRIZ1977"]
[Black "EdenHazard8"]
[Result "0-1"]
[WhiteElo "1978"]
[BlackElo "1952"]
[TimeControl "300"]
[EndTime "1:27:04 PDT"]
[Termination "EdenHazard8 won by resignation"]

1. c4 {[%clk 0:04:55.7]} 1... e5 {[%clk 0:04:54.7]} 2. g3 {[%clk 0:04:53.9]}
2... Nc6 {[%clk 0:04:54.6]} 3. Bg2 {[%clk 0:04:52.5]} 3... f5 {[%clk 0:04:54.1]}
4. Nc3 {[%clk 0:04:51.5]} 4... Nf6 {[%clk 0:04:52.9]} 5. d3 {[%clk 0:04:50.8]}
5... Bb4 {[%clk 0:04:49]} 6. Bd2 {[%clk 0:04:50.1]} 6... Bxc3 {[%clk 0:04:43.1]}
7. Bxc3 {[%clk 0:04:45.2]} 7... d6 {[%clk 0:04:43]} 8. Nf3 {[%clk 0:04:43.6]}
8... O-O {[%clk 0:04:39.6]} 9. O-O {[%clk 0:04:43.1]} 9... Qe8 {[%clk
0:04:29.6]} 10. b4 {[%clk 0:04:37.8]} 10... Qh5 {[%clk 0:04:21]} 11. b5 {[%clk
0:04:36.5]} 11... Ne7 {[%clk 0:04:07.7]} 12. Nd2 {[%clk 0:04:28.8]} 12... f4
{[%clk 0:04:05.4]} 13. e3 {[%clk 0:04:23.2]} 13... Bg4 {[%clk 0:04:00.8]} 14.
Bf3 {[%clk 0:04:17.3]} 14... fxe3 {[%clk 0:03:53.7]} 15. fxe3 {[%clk 0:04:15]}
15... Bxf3 {[%clk 0:03:50.2]} 16. Qxf3 {[%clk 0:04:12.3]} 16... Ng4 {[%clk
0:03:48.1]} 17. Qe2 {[%clk 0:04:03.9]} 17... Qg5 {[%clk 0:03:38.2]} 18. Rxf8+
{[%clk 0:03:58.2]} 18... Rxf8 {[%clk 0:03:35.6]} 19. Nf1 {[%clk 0:03:58.1]}
19... Nf5 {[%clk 0:03:29.9]} 20. Bd2 {[%clk 0:03:53.6]} 20... Ne7 {[%clk
0:03:08.7]} 21. Re1 {[%clk 0:03:50.7]} 21... Rf2 {[%clk 0:03:01.2]} 22. Qxf2
{[%clk 0:03:46]} 22... Nxf2 {[%clk 0:02:59.1]} 23. Kxf2 {[%clk 0:03:45.9]} 23...
Qf5+ {[%clk 0:02:53.4]} 24. Ke2 {[%clk 0:03:44]} 24... Qh5+ {[%clk 0:02:48.8]}
0-1

[Event "Live Chess"]
[Site "Chess.com"]
[Date "2023.05.21"]
[Round "-"]
[White "Ferrarifan27"]
[Black "Cimon"]
[Result "1-0"]
[WhiteElo "2083"]
[BlackElo "1846"]
[TimeControl "300"]
[EndTime "1:27:21 PDT"]
[Termination "Ferrarifan27 won by checkmate"]

1. e4 {[%clk 0:04:55]} 1... d6 {[%clk 0:04:58.3]} 2. d4 {[%clk 0:04:52.6]} 2...
Nf6 {[%clk 0:04:57.1]} 3. Nc3 {[%clk 0:04:50.8]} 3... g6 {[%clk 0:04:56.1]} 4.
Nf3 {[%clk 0:04:49.2]} 4... Bg7 {[%clk 0:04:55]} 5. Bc4 {[%clk 0:04:44.6]} 5...
O-O {[%clk 0:04:53.4]} 6. O-O {[%clk 0:04:43.3]} 6... e5 {[%clk 0:04:47.4]} 7.
dxe5 {[%clk 0:04:40.1]} 7... dxe5 {[%clk 0:04:46.2]} 8. Nxe5 {[%clk 0:04:30.6]}
8... Nxe4 {[%clk 0:04:44.6]} 9. Qxd8 {[%clk 0:04:26.3]} 9... Rxd8 {[%clk
0:04:42.9]} 10. Nxf7 {[%clk 0:04:23.2]} 10... Rd4 {[%clk 0:04:15.7]} 11. Nd6+
{[%clk 0:04:02.8]} 11... Rxc4 {[%clk 0:03:50.9]} 12. Nxc4 {[%clk 0:04:01.1]}
12... Nxc3 {[%clk 0:03:44.9]} 13. bxc3 {[%clk 0:03:59.8]} 13... Be6 {[%clk
0:03:36]} 14. Ne3 {[%clk 0:03:50.1]} 14... Bxc3 {[%clk 0:03:33.9]} 15. Rb1
{[%clk 0:03:49.3]} 15... b6 {[%clk 0:03:30.7]} 16. a3 {[%clk 0:03:44.1]} 16...
a6 {[%clk 0:03:25.6]} 17. Bb2 {[%clk 0:03:43]} 17... Bxb2 {[%clk 0:03:13.5]} 18.
Rxb2 {[%clk 0:03:42.9]} 18... Nc6 {[%clk 0:03:12]} 19. Rd1 {[%clk 0:03:40.7]}
19... Kf7 {[%clk 0:03:07.2]} 20. c3 {[%clk 0:03:34.8]} 20... Ne5 {[%clk
0:03:03.6]} 21. Rbd2 {[%clk 0:03:30.9]} 21... c6 {[%clk 0:02:58.7]} 22. f4
{[%clk 0:03:25.6]} 22... Nc4 {[%clk 0:02:45.6]} 23. Nxc4 {[%clk 0:03:24.4]}
23... Bxc4 {[%clk 0:02:44.4]} 24. Rd7+ {[%clk 0:03:22.5]} 24... Kf6 {[%clk
0:02:37]} 25. R1d6+ {[%clk 0:03:20.7]} 25... Kf5 {[%clk 0:02:34.2]} 26. Rxc6
{[%clk 0:03:19.2]} 26... Bb5 {[%clk 0:02:27.8]} 27. Rd5+ {[%clk 0:03:14.8]}
27... Kxf4 {[%clk 0:02:24]} 28. Rxb6 {[%clk 0:03:11.3]} 28... Rc8 {[%clk
0:02:16.3]} 29. Rd4+ {[%clk 0:03:00.4]} 29... Ke3 {[%clk 0:02:14.6]} 30. Re6#
{[%clk 0:02:58]} 1-0

[Event "Live Chess"]
[Site "Chess.com"]
[Date "2023.05.21"]
[Round "-"]
[White "Missedidea"]
[Black "RoaringKnights"]
[Result "1-0"]
[WhiteElo "1842"]
[BlackElo "993"]
[TimeControl "300"]
[EndTime "1:27:22 PDT"]
[Termination "Missedidea won by checkmate"]

1. d4 {[%clk 0:04:56.8]} 1... c6 {[%clk 0:04:57.5]} 2. c4 {[%clk 0:04:52.5]}
2... d5 {[%clk 0:04:56]} 3. Nf3 {[%clk 0:04:48.2]} 3... Bf5 {[%clk 0:04:53.6]}
4. Nc3 {[%clk 0:04:46.1]} 4... e6 {[%clk 0:04:51.9]} 5. Bf4 {[%clk 0:04:40.5]}
5... c5 {[%clk 0:04:49.8]} 6. e3 {[%clk 0:04:35]} 6... cxd4 {[%clk 0:04:47]} 7.
exd4 {[%clk 0:04:32.3]} 7... Bb4 {[%clk 0:04:43.7]} 8. Be2 {[%clk 0:04:27]} 8...
dxc4 {[%clk 0:04:36.2]} 9. O-O {[%clk 0:04:22.3]} 9... Nf6 {[%clk 0:04:26.5]}
10. Qa4+ {[%clk 0:04:16.1]} 10... Nc6 {[%clk 0:04:16.8]} 11. Ne5 {[%clk
0:04:14.3]} 11... Rc8 {[%clk 0:03:53.9]} 12. Nxc6 {[%clk 0:04:12.5]} 12... Rxc6
{[%clk 0:03:46.3]} 13. Qxb4 {[%clk 0:04:10.1]} 13... Rb6 {[%clk 0:03:44.9]} 14.
Qxc4 {[%clk 0:04:06.4]} 14... O-O {[%clk 0:03:43.4]} 15. b4 {[%clk 0:03:59.7]}
15... a6 {[%clk 0:03:40.9]} 16. a3 {[%clk 0:03:57.7]} 16... Rc6 {[%clk
0:03:38.3]} 17. Qb3 {[%clk 0:03:52.2]} 17... Qc8 {[%clk 0:03:35.4]} 18. Rac1
{[%clk 0:03:48]} 18... Ne4 {[%clk 0:03:29.2]} 19. Nxe4 {[%clk 0:03:43.3]} 19...
Rxc1 {[%clk 0:03:26.7]} 20. Rxc1 {[%clk 0:03:41.1]} 20... Qd7 {[%clk 0:03:15.4]}
21. Nc5 {[%clk 0:03:38.5]} 21... Qc6 {[%clk 0:03:11]} 22. Bf3 {[%clk 0:03:36.3]}
22... Qb5 {[%clk 0:03:08]} 23. d5 {[%clk 0:03:32.1]} 23... exd5 {[%clk
0:03:06.7]} 24. Bxd5 {[%clk 0:03:30]} 24... Bg6 {[%clk 0:02:55.7]} 25. Ne4
{[%clk 0:03:24.6]} 25... Re8 {[%clk 0:02:48.5]} 26. Nd6 {[%clk 0:03:20.7]} 26...
Qd7 {[%clk 0:02:38.7]} 27. Nxe8 {[%clk 0:03:18.3]} 27... Qxe8 {[%clk 0:02:37.8]}
28. h4 {[%clk 0:03:14.5]} 28... Qb5 {[%clk 0:02:28.5]} 29. Rc8+ {[%clk 0:03:10]}
29... Qe8 {[%clk 0:02:23.8]} 30. Rxe8# {[%clk 0:03:08.1]} 1-0

[Event "Live Chess"]
[Site "Chess.com"]
[Date "2023.05.21"]
[Round "-"]
[White "Bot_Boy"]
[Black "Tema1107"]
[Result "0-1"]
[WhiteElo "334"]
[BlackElo "1939"]
[TimeControl "300"]
[EndTime "1:27:48 PDT"]
[Termination "Tema1107 won on time"]

1. Nf3 {[%clk 0:04:56.7]} 1... Nf6 {[%clk 0:04:49.8]} 2. e3 {[%clk 0:04:52.6]}
2... e6 {[%clk 0:04:49.7]} 3. Nc3 {[%clk 0:04:50.8]} 3... b6 {[%clk 0:04:42.1]}
4. d4 {[%clk 0:04:40.3]} 4... Bb7 {[%clk 0:04:38.9]} 5. Bc4 {[%clk 0:04:30.3]}
5... d6 {[%clk 0:04:36.3]} 6. O-O {[%clk 0:04:28.3]} 6... Nbd7 {[%clk
0:04:31.2]} 7. Qe2 {[%clk 0:04:26.1]} 7... Be7 {[%clk 0:04:25.2]} 8. Bd3 {[%clk
0:04:21.9]} 8... O-O {[%clk 0:04:17.8]} 9. e4 {[%clk 0:04:11.7]} 9... e5 {[%clk
0:04:14.4]} 10. d5 {[%clk 0:04:06]} 10... a5 {[%clk 0:03:40.8]} 11. a4 {[%clk
0:03:47.3]} 11... Ne8 {[%clk 0:03:36.1]} 12. Be3 {[%clk 0:03:29.9]} 12... g6
{[%clk 0:03:27.9]} 13. Qd2 {[%clk 0:03:22.6]} 13... Ng7 {[%clk 0:03:23.3]} 14.
Ne2 {[%clk 0:03:01]} 14... f5 {[%clk 0:03:17.4]} 15. Bg5 {[%clk 0:02:41.7]}
15... f4 {[%clk 0:03:06.8]} 16. Bxe7 {[%clk 0:02:11.1]} 16... Qxe7 {[%clk
0:03:06.7]} 17. Kh1 {[%clk 0:01:54.8]} 17... g5 {[%clk 0:02:53.7]} 18. Neg1
{[%clk 0:01:43.7]} 18... g4 {[%clk 0:02:39.2]} 19. Ne1 {[%clk 0:01:39.6]} 19...
h5 {[%clk 0:02:34.6]} 20. g3 {[%clk 0:01:26.1]} 20... h4 {[%clk 0:02:26.7]} 21.
f3 {[%clk 0:00:55.1]} 21... hxg3 {[%clk 0:02:17]} 22. fxg4 {[%clk 0:00:20.9]}
22... Qh4 {[%clk 0:02:11.2]} 23. Qg2 {[%clk 0:00:14.8]} 23... Nf6 {[%clk
0:01:10.7]} 24. Ngf3 {[%clk 0:00:10.7]} 24... Qxg4 {[%clk 0:00:48.7]} 25. Be2
{[%clk 0:00:04.4]} 25... gxh2 {[%clk 0:00:31.1]} 26. Nxh2 {[%clk 0:00:02.7]}
26... Qxg2+ {[%clk 0:00:28.7]} 27. Kxg2 {[%clk 0:00:01.8]} 27... Nxe4 {[%clk
0:00:28.1]} 28. Nef3 {[%clk 0:00:00.5]} 28... Ng3 {[%clk 0:00:23.2]} 0-1

[Event "Live Chess"]
[Site "Chess.com"]
[Date "2023.05.21"]
[Round "-"]
[White "HoarseyHorsey"]
[Black "JoshMcK"]
[Result "1/2-1/2"]
[WhiteElo "1468"]
[BlackElo "1531"]
[TimeControl "300"]
[EndTime "1:27:50 PDT"]
[Termination "Game drawn by agreement"]

1. d4 {[%clk 0:04:59.2]} 1... d5 {[%clk 0:04:58.2]} 2. c4 {[%clk 0:04:58.4]}
2... e6 {[%clk 0:04:56.1]} 3. Nc3 {[%clk 0:04:57.2]} 3... Nf6 {[%clk 0:04:53.4]}
4. cxd5 {[%clk 0:04:56.4]} 4... exd5 {[%clk 0:04:50.6]} 5. Bg5 {[%clk
0:04:54.9]} 5... c6 {[%clk 0:04:38.2]} 6. e3 {[%clk 0:04:54]} 6... h6 {[%clk
0:04:36.6]} 7. Bh4 {[%clk 0:04:52.5]} 7... Be7 {[%clk 0:04:35]} 8. Nf3 {[%clk
0:04:50.4]} 8... O-O {[%clk 0:04:33.1]} 9. Bd3 {[%clk 0:04:49.4]} 9... Nbd7
{[%clk 0:04:29.6]} 10. Qc2 {[%clk 0:04:46.6]} 10... Re8 {[%clk 0:04:09.6]} 11.
O-O {[%clk 0:04:45]} 11... Ne4 {[%clk 0:04:01.2]} 12. Bxe7 {[%clk 0:04:43.4]}
12... Rxe7 {[%clk 0:03:58.8]} 13. Rfe1 {[%clk 0:04:40.9]} 13... Nxc3 {[%clk
0:03:53.4]} 14. bxc3 {[%clk 0:04:40.8]} 14... Nf6 {[%clk 0:03:52.3]} 15. Ne5
{[%clk 0:04:36.7]} 15... Ng4 {[%clk 0:03:44.1]} 16. Nxg4 {[%clk 0:04:33.2]}
16... Bxg4 {[%clk 0:03:41.8]} 17. Bh7+ {[%clk 0:04:28.2]} 17... Kh8 {[%clk
0:03:39.3]} 18. Bf5 {[%clk 0:04:26.9]} 18... Bxf5 {[%clk 0:03:37.5]} 19. Qxf5
{[%clk 0:04:26.8]} 19... Qd7 {[%clk 0:03:34.6]} 20. Qf4 {[%clk 0:04:16.5]} 20...
Rae8 {[%clk 0:03:30.2]} 21. Rab1 {[%clk 0:04:13.6]} 21... b6 {[%clk 0:03:28.8]}
22. Re2 {[%clk 0:04:05.1]} 22... Qe6 {[%clk 0:03:25.1]} 23. a4 {[%clk
0:03:57.2]} 23... Qe4 {[%clk 0:03:17.9]} 24. Qxe4 {[%clk 0:03:40.7]} 24... Rxe4
{[%clk 0:03:17.8]} 25. Rc1 {[%clk 0:03:34.6]} 25... a6 {[%clk 0:02:59.4]} 26. c4
{[%clk 0:03:30.7]} 26... dxc4 {[%clk 0:02:53.5]} 27. Rxc4 {[%clk 0:03:29.1]}
27... c5 {[%clk 0:02:52.6]} 28. Rec2 {[%clk 0:03:22.2]} 28... cxd4 {[%clk
0:02:49.3]} 29. Rc8 {[%clk 0:03:09.4]} 29... dxe3 {[%clk 0:02:42.1]} 30. Rxe8+
{[%clk 0:03:07.9]} 30... Rxe8 {[%clk 0:02:40.6]} 31. Re2 {[%clk 0:03:05.6]}
31... f5 {[%clk 0:02:29.2]} 32. fxe3 {[%clk 0:03:00.7]} 32... f4 {[%clk
0:02:28]} 33. Kf2 {[%clk 0:02:57.7]} 33... fxe3+ {[%clk 0:02:25.8]} 34. Rxe3
{[%clk 0:02:56.3]} 34... Rxe3 {[%clk 0:02:23.2]} 35. Kxe3 {[%clk 0:02:56.2]}
35... Kg8 {[%clk 0:02:22.1]} 36. Kd4 {[%clk 0:02:55.7]} 36... Kf8 {[%clk
0:02:14.4]} 37. Kd5 {[%clk 0:02:55.1]} 37... Ke7 {[%clk 0:02:13.7]} 38. Kc6
{[%clk 0:02:54.4]} 38... b5 {[%clk 0:02:11.7]} 39. axb5 {[%clk 0:02:53.3]} 39...
axb5 {[%clk 0:02:10]} 40. Kxb5 {[%clk 0:02:52.4]} 40... Ke6 {[%clk 0:02:09.5]}
41. Kc4 {[%clk 0:02:52]} 41... Ke5 {[%clk 0:02:08.7]} 42. Kd3 {[%clk 0:02:51.7]}
42... Kf4 {[%clk 0:02:07.6]} 43. Ke2 {[%clk 0:02:51.2]} 43... g5 {[%clk
0:02:06.6]} 44. Kf2 {[%clk 0:02:50.2]} 44... h5 {[%clk 0:02:05.8]} 45. Ke2
{[%clk 0:02:47.2]} 45... g4 {[%clk 0:02:04.7]} 46. Kf2 {[%clk 0:02:41.5]}
1/2-1/2

[Event "Live Chess"]
[Site "Chess.com"]
[Date "2023.05.21"]
[Round "-"]
[White "MarkLim1"]
[Black "JoeyCage"]
[Result "0-1"]
[WhiteElo "1707"]
[BlackElo "2307"]
[TimeControl "300"]
[EndTime "1:28:12 PDT"]
[Termination "JoeyCage won by resignation"]

1. d4 {[%clk 0:04:54.5]} 1... g6 {[%clk 0:04:58.4]} 2. Nf3 {[%clk 0:04:53.5]}
2... Bg7 {[%clk 0:04:57.3]} 3. e4 {[%clk 0:04:52.9]} 3... d6 {[%clk 0:04:55.7]}
4. c4 {[%clk 0:04:52.2]} 4... Nc6 {[%clk 0:04:52.6]} 5. Be2 {[%clk 0:04:49.8]}
5... Bg4 {[%clk 0:04:50.3]} 6. Be3 {[%clk 0:04:48.2]} 6... Bxf3 {[%clk
0:04:44.2]} 7. Bxf3 {[%clk 0:04:47.2]} 7... e5 {[%clk 0:04:43.6]} 8. d5 {[%clk
0:04:45.5]} 8... Nd4 {[%clk 0:04:42.3]} 9. Bxd4 {[%clk 0:04:43.9]} 9... exd4
{[%clk 0:04:41.2]} 10. Nd2 {[%clk 0:04:43.3]} 10... c5 {[%clk 0:04:39]} 11. dxc6
{[%clk 0:04:40.5]} 11... bxc6 {[%clk 0:04:37.9]} 12. Nb3 {[%clk 0:04:39.8]}
12... c5 {[%clk 0:04:34.6]} 13. O-O {[%clk 0:04:38]} 13... Ne7 {[%clk
0:04:33.1]} 14. Qd3 {[%clk 0:04:33.5]} 14... O-O {[%clk 0:04:30.7]} 15. Rfe1
{[%clk 0:04:28.2]} 15... Nc6 {[%clk 0:04:28.8]} 16. a3 {[%clk 0:04:22.6]} 16...
Rb8 {[%clk 0:04:26.2]} 17. Re2 {[%clk 0:04:09.6]} 17... Ne5 {[%clk 0:04:23.8]}
18. Qd1 {[%clk 0:03:55.5]} 18... Nxc4 {[%clk 0:04:11.6]} 19. Rc1 {[%clk
0:03:48.9]} 19... Ne5 {[%clk 0:04:10]} 20. Na5 {[%clk 0:03:45.6]} 20... Qxa5
{[%clk 0:04:06.1]} 0-1

[Event "Live Chess"]
[Site "Chess.com"]
[Date "2023.05.21"]
[Round "-"]
[White "wadsy27"]
[Black "MJMykh"]
[Result "1-0"]
[WhiteElo "2568"]
[BlackElo "1101"]
[TimeControl "300"]
[EndTime "1:28:12 PDT"]
[Termination "wadsy27 won by resignation"]

1. c4 {[%clk 0:04:58.9]} 1... c5 {[%clk 0:04:57.2]} 2. g3 {[%clk 0:04:56.4]}
2... Nf6 {[%clk 0:04:56]} 3. Bg2 {[%clk 0:04:55.8]} 3... Nc6 {[%clk 0:04:54.6]}
4. Nf3 {[%clk 0:04:54.2]} 4... e6 {[%clk 0:04:52.5]} 5. O-O {[%clk 0:04:51.8]}
5... h6 {[%clk 0:04:51.7]} 6. b3 {[%clk 0:04:50.5]} 6... Be7 {[%clk 0:04:50.9]}
7. Bb2 {[%clk 0:04:49.8]} 7... O-O {[%clk 0:04:49.8]} 8. d4 {[%clk 0:04:49.5]}
8... cxd4 {[%clk 0:04:48.7]} 9. Nxd4 {[%clk 0:04:49.4]} 9... Nxd4 {[%clk
0:04:48.1]} 10. Qxd4 {[%clk 0:04:48]} 10... d6 {[%clk 0:04:45.9]} 11. Nc3 {[%clk
0:04:47.1]} 11... a6 {[%clk 0:04:43.8]} 12. Rad1 {[%clk 0:04:46.3]} 12... Rb8
{[%clk 0:04:42.9]} 13. Ne4 {[%clk 0:04:40.4]} 13... Bd7 {[%clk 0:04:37.1]} 14.
Nxd6 {[%clk 0:04:38]} 14... Bxd6 {[%clk 0:04:37]} 15. Qxd6 {[%clk 0:04:36.7]}
15... Rc8 {[%clk 0:04:29.7]} 16. Bxb7 {[%clk 0:04:34.4]} 16... Rb8 {[%clk
0:04:28.6]} 17. Bf3 {[%clk 0:04:31.4]} 17... Rb6 {[%clk 0:04:24.9]} 18. Bxf6
{[%clk 0:04:29.6]} 18... gxf6 {[%clk 0:04:19.9]} 19. Qxd7 {[%clk 0:04:28.4]}
19... Qxd7 {[%clk 0:04:18.8]} 20. Rxd7 {[%clk 0:04:28.3]} 1-0

[Event "Live Chess"]
[Site "Chess.com"]
[Date "2023.05.21"]
[Round "-"]
[White "Vitalii18a"]
[Black "MaximKris"]
[Result "1-0"]
[WhiteElo "1127"]
[BlackElo "1800"]
[TimeControl "300"]
[EndTime "1:28:15 PDT"]
[Termination "Vitalii18a won by checkmate"]

1. e4 {[%clk 0:04:56.2]} 1... e5 {[%clk 0:04:47.3]} 2. Nf3 {[%clk 0:04:53.8]}
2... Nc6 {[%clk 0:04:45.6]} 3. Bb5 {[%clk 0:04:51.3]} 3... a6 {[%clk 0:04:44.3]}
4. Ba4 {[%clk 0:04:49.5]} 4... Nf6 {[%clk 0:04:42.3]} 5. d3 {[%clk 0:04:47.8]}
5... b5 {[%clk 0:04:40.5]} 6. Bb3 {[%clk 0:04:46.1]} 6... d6 {[%clk 0:04:40.4]}
7. O-O {[%clk 0:04:43.5]} 7... Be6 {[%clk 0:04:39.8]} 8. c3 {[%clk 0:04:40.5]}
8... Qd7 {[%clk 0:04:38.2]} 9. Re1 {[%clk 0:04:39.3]} 9... Be7 {[%clk
0:04:37.6]} 10. d4 {[%clk 0:04:37.8]} 10... exd4 {[%clk 0:04:36.5]} 11. cxd4
{[%clk 0:04:36.6]} 11... Bxb3 {[%clk 0:04:36.2]} 12. axb3 {[%clk 0:04:35.2]}
12... O-O-O {[%clk 0:04:35.9]} 13. Rxa6 {[%clk 0:04:32]} 13... Kb7 {[%clk
0:04:35.5]} 14. Ra1 {[%clk 0:04:20.1]} 14... Ra8 {[%clk 0:04:33.1]} 15. Rxa8
{[%clk 0:04:18.5]} 15... Rxa8 {[%clk 0:04:33]} 16. Nc3 {[%clk 0:04:14.8]} 16...
Nb4 {[%clk 0:02:17.4]} 17. Bg5 {[%clk 0:03:47]} 17... h6 {[%clk 0:01:39.9]} 18.
Bh4 {[%clk 0:03:43.5]} 18... g5 {[%clk 0:01:33.7]} 19. Bg3 {[%clk 0:03:42]}
19... g4 {[%clk 0:01:16.4]} 20. Nh4 {[%clk 0:03:23.9]} 20... h5 {[%clk
0:00:49.9]} 21. h3 {[%clk 0:03:06.3]} 21... Na2 {[%clk 0:00:41.3]} 22. hxg4
{[%clk 0:02:52.8]} 22... Nxc3 {[%clk 0:00:40.1]} 23. bxc3 {[%clk 0:02:51.5]}
23... Qxg4 {[%clk 0:00:39]} 24. Qxg4 {[%clk 0:02:49.4]} 24... Nxg4 {[%clk
0:00:37.5]} 25. Nf5 {[%clk 0:02:41.5]} 25... Bf6 {[%clk 0:00:35.4]} 26. f3
{[%clk 0:02:29]} 26... h4 {[%clk 0:00:28.3]} 27. Bf4 {[%clk 0:02:14.7]} 27...
Ne5 {[%clk 0:00:16.7]} 28. dxe5 {[%clk 0:02:11.7]} 28... Bxe5 {[%clk 0:00:16.6]}
29. Bxe5 {[%clk 0:02:10.2]} 29... dxe5 {[%clk 0:00:16.5]} 30. Nxh4 {[%clk
0:02:06.8]} 30... Ra3 {[%clk 0:00:11.2]} 31. Rb1 {[%clk 0:02:05]} 31... c5
{[%clk 0:00:09.2]} 32. Nf5 {[%clk 0:02:00.1]} 32... c4 {[%clk 0:00:08.7]} 33.
bxc4 {[%clk 0:01:58.7]} 33... Rxc3 {[%clk 0:00:08.2]} 34. cxb5 {[%clk
0:01:57.7]} 34... Kb6 {[%clk 0:00:07.3]} 35. Nd6 {[%clk 0:01:54.9]} 35... Rc5
{[%clk 0:00:07]} 36. Nxf7 {[%clk 0:01:53.3]} 36... Rxb5 {[%clk 0:00:06.5]} 37.
Rxb5+ {[%clk 0:01:52.1]} 37... Kxb5 {[%clk 0:00:06.4]} 38. Nxe5 {[%clk
0:01:51.2]} 38... Kb6 {[%clk 0:00:06.3]} 39. g4 {[%clk 0:01:49.9]} 39... Kc7
{[%clk 0:00:06.2]} 40. g5 {[%clk 0:01:49]} 40... Kd8 {[%clk 0:00:06.1]} 41. Kg2
{[%clk 0:01:48.4]} 41... Ke7 {[%clk 0:00:06]} 42. Kg3 {[%clk 0:01:47.9]} 42...
Kf8 {[%clk 0:00:05.9]} 43. Kg4 {[%clk 0:01:47.2]} 43... Kg7 {[%clk 0:00:05.8]}
44. f4 {[%clk 0:01:46.6]} 44... Kf8 {[%clk 0:00:05.7]} 45. f5 {[%clk 0:01:45.8]}
45... Kg8 {[%clk 0:00:05.6]} 46. Nf3 {[%clk 0:01:44.2]} 46... Kf8 {[%clk
0:00:05.5]} 47. Kh5 {[%clk 0:01:43.4]} 47... Kg8 {[%clk 0:00:05.4]} 48. Kh6
{[%clk 0:01:42.5]} 48... Kf8 {[%clk 0:00:05.3]} 49. Kh7 {[%clk 0:01:41.4]} 49...
Kf7 {[%clk 0:00:04.7]} 50. g6+ {[%clk 0:01:40.5]} 50... Kf8 {[%clk 0:00:04.6]}
51. g7+ {[%clk 0:01:39.6]} 51... Ke8 {[%clk 0:00:04.5]} 52. g8=Q+ {[%clk
0:01:38.4]} 52... Ke7 {[%clk 0:00:04.4]} 53. Qg6 {[%clk 0:01:36.5]} 53... Kd7
{[%clk 0:00:04.3]} 54. f6 {[%clk 0:01:35.6]} 54... Kc6 {[%clk 0:00:04.2]} 55.
f7+ {[%clk 0:01:34.4]} 55... Kc5 {[%clk 0:00:04.1]} 56. f8=R {[%clk 0:01:31.9]}
56... Kb4 {[%clk 0:00:04]} 57. Qc6 {[%clk 0:01:29.4]} 57... Kb3 {[%clk
0:00:03.2]} 58. Rb8+ {[%clk 0:01:27.3]} 58... Ka3 {[%clk 0:00:03.1]} 59. Qa8#
{[%clk 0:01:26]} 1-0